lending/lending_fUSD_20240824
["ID","MTS","AMOUNT","RATE_DAILY","PERIOD"]
[335821613,1724512231930,-3110.4897,0.00010899,2]
[335821614,1724512231939,-320.7457,0.00010899,2]
[335821615,1724512231948,-1213.8793132,0.00010899,2]
[335821616,1724512231957,-155.38847897,0.00010899,2]
[335821617,1724512231967,-440.47398206,0.00010899,2]
[335821618,1724512231976,-155.81778761,0.00010899,2]
[335821619,1724512231986,-1213.87931316,0.00010899,2]
[335821620,1724512231995,-1213.87931316,0.00010899,2]
[335821621,1724512232004,-1213.87931316,0.00010899,2]
[335821622,1724512232013,-1213.87931316,0.00010899,2]
[335821623,1724512232022,-1213.87931316,0.000109,2]
[335821624,1724512232031,-1213.87931316,0.000109,2]
[335821625,1724512232042,-1213.87931316,0.000109,2]
[335821626,1724512232051,-1213.87931316,0.000109,2]
[335821627,1724512232060,-3081.23388496,0.000109,2]
[335821628,1724512232070,-705.17092866,0.000109,2]
[335821629,1724512232079,-705.17092866,0.000109,2]
[335821630,1724512232088,-397.97484808,0.000109,2]
[335821631,1724512232098,-397.97484808,0.000109,2]
[335821632,1724512232107,-397.97484808,0.000109,2]
[335821633,1724512232116,-397.97484808,0.000109,2]
[335821634,1724512232125,-397.97484808,0.000109,2]
[335821635,1724512232134,-397.97484808,0.000109,2]
[335821636,1724512232143,-397.97484808,0.000109,2]
[335821637,1724512232153,-397.97484808,0.000109,2]
[335821638,1724512232162,-1428.0,0.000109,2]
[335821639,1724512232171,-1213.87931316,0.000109,2]
[335821640,1724512232180,-3000.0,0.0001094,2]
[335821641,1724512232189,-164.0179047,0.00010949,2]
[335821642,1724512232197,-169.91283276,0.00010949,2]
[335821643,1724512232207,-161.89,0.00010959,2]
[335821644,1724512232216,-250.0,0.00010959,2]
[335821645,1724512232225,-2000.0,0.00010959,2]
[335821646,1724512232234,-154.97,0.00010959,2]
[335821647,1724512232243,-26470.29700891,0.0001099,2]
[335821648,1724512232252,-2870.03501766,0.00010997,2]
[335821649,1724512232263,-500.0,0.00010998,2]
[335821650,1724512232272,-500.0,0.00010998,2]
[335821651,1724512232281,-500.0,0.00010998,2]
[335821652,1724512232291,-500.0,0.00010998,2]
[335821653,1724512232300,-500.0,0.00010998,2]
[335821654,1724512232310,-500.0,0.00010998,2]
[335821655,1724512232319,-500.0,0.00010998,2]
[335821656,1724512232328,-500.0,0.00010998,2]
[335821657,1724512232338,-500.0,0.00010998,2]
[335821658,1724512232348,-500.0,0.00010998,2]
[335821659,1724512232357,-500.0,0.00010998,2]
[335821660,1724512232368,-500.0,0.00010998,2]
[335821661,1724512232377,-500.0,0.00010998,2]
[335821662,1724512232386,-500.0,0.00010998,2]
[335821663,1724512232395,-500.0,0.00010998,2]
[335821664,1724512232404,-500.0,0.00010998,2]
[335821665,1724512232414,-500.0,0.00010998,2]
[335821666,1724512232424,-500.0,0.00010998,2]
[335821667,1724512232433,-500.0,0.00010998,2]
[335821668,1724512232442,-560.62,0.00010998,2]
[335821669,1724512232451,-262.87781265,0.00010998,2]
[335821670,1724512232460,-500.0,0.00010998,2]
[335821671,1724512232470,-500.0,0.00010998,2]
[335821672,1724512232479,-472.49983338,0.00010998,2]
[335821673,1724512232488,-500.0,0.00010998,2]
[335821674,1724512232498,-500.0,0.00010998,2]
[335821675,1724512232507,-500.0,0.00010998,2]
[335821676,1724512232516,-500.0,0.00010998,2]
[335821677,1724512232526,-345.77533486,0.00010999,2]
[335821678,1724512232536,-205.05629645,0.00010999,2]
[335821679,1724512232545,-2000.0,0.00010999,2]
[335821680,1724512232555,-200.0,0.00010999,2]
[335821681,1724512232564,-461.887,0.00010999,2]
[335821682,1724512232573,-500.0,0.00010999,2]
[335821683,1724512232582,-500.0,0.00010999,2]
[335821684,1724512232591,-167.84281995,0.00010999,2]
[335821685,1724512232600,-200.0,0.00010999,2]
[335821686,1724512232609,-500.0,0.00010999,2]
[335821687,1724512232618,-500.0,0.00010999,2]
[335821688,1724512232627,-500.0,0.00010999,2]
[335821689,1724512232636,-500.0,0.00010999,2]
[335821690,1724512232645,-500.0,0.00010999,2]
[335821691,1724512232654,-500.0,0.00010999,2]
[335821692,1724512232663,-500.0,0.00010999,2]
[335821693,1724512232672,-500.0,0.00010999,2]
[335821694,1724512232681,-500.0,0.00010999,2]
[335821695,1724512232690,-500.0,0.00010999,2]
[335821696,1724512232700,-323.00183962,0.00010999,2]
[335821697,1724512232709,-500.0,0.00010999,2]
[335821698,1724512232718,-500.0,0.00010999,2]
[335821699,1724512232727,-500.0,0.00010999,2]
[335821700,1724512232737,-203.51516548,0.00010999,2]
[335821701,1724512232746,-243.8164775,0.00010999,2]
[335821702,1724512232755,-151.0,0.00010999,2]
[335821703,1724512232764,-151.0,0.00010999,2]
[335821704,1724512232774,-500.0,0.00010999,2]
[335821705,1724512232783,-500.0,0.00010999,2]
[335821706,1724512232792,-500.0,0.00010999,2]
[335821707,1724512232801,-500.0,0.00010999,2]
[335821708,1724512232810,-500.0,0.00010999,2]
[335821709,1724512232819,-500.0,0.00010999,2]
[335821710,1724512232829,-500.0,0.00010999,2]
[335821711,1724512232838,-500.0,0.00010999,2]
[335821712,1724512232847,-241.64,0.00010999,2]
[335821713,1724512232856,-500.0,0.00010999,2]
[335821714,1724512232865,-500.0,0.00010999,2]
[335821715,1724512232874,-500.0,0.00010999,2]
[335821716,1724512232884,-500.0,0.00010999,2]
[335821717,1724512232892,-500.0,0.00010999,2]
[335821718,1724512232902,-500.0,0.00010999,2]
[335821719,1724512232911,-500.0,0.00010999,2]
[335821720,1724512232920,-500.0,0.00010999,2]
[335821721,1724512232930,-500.0,0.00010999,2]
[335821722,1724512232938,-272.77,0.00010999,2]
[335821723,1724512232947,-500.0,0.00010999,2]
[335821724,1724512232957,-500.0,0.00010999,2]
[335821725,1724512232966,-500.0,0.00010999,2]
[335821726,1724512232976,-500.0,0.00010999,2]
[335821727,1724512232986,-500.0,0.00010999,2]
[335821728,1724512232997,-500.0,0.00010999,2]
[335821729,1724512233006,-500.0,0.00010999,2]
[335821730,1724512233016,-500.0,0.00010999,2]
[335821731,1724512233025,-500.0,0.00010999,2]
[335821732,1724512233034,-500.0,0.00010999,2]
[335821733,1724512233044,-500.0,0.00010999,2]
[335821734,1724512233054,-500.0,0.00010999,2]
[335821735,1724512233063,-500.0,0.00010999,2]
[335821736,1724512233072,-500.0,0.00010999,2]
[335821737,1724512233082,-500.0,0.00010999,2]
[335821738,1724512233091,-500.0,0.00010999,2]
[335821739,1724512233100,-500.0,0.00010999,2]
[335821740,1724512233109,-500.0,0.00010999,2]
[335821741,1724512233119,-500.0,0.00010999,2]
[335821742,1724512233129,-500.0,0.00010999,2]
[335821743,1724512233138,-436.89,0.00010999,2]
[335821744,1724512233148,-500.0,0.00010999,2]
[335821745,1724512233157,-500.0,0.00010999,2]
[335821746,1724512233166,-500.0,0.00010999,2]
[335821747,1724512233175,-500.0,0.00010999,2]
[335821748,1724512233185,-500.0,0.00010999,2]
[335821749,1724512233195,-500.0,0.00010999,2]
[335821750,1724512233205,-500.0,0.00010999,2]
[335821751,1724512233214,-500.0,0.00010999,2]
[335821752,1724512233224,-500.0,0.00010999,2]
[335821753,1724512233233,-500.0,0.00010999,2]
[335821754,1724512233243,-500.0,0.00010999,2]
[335821755,1724512233252,-500.0,0.00010999,2]
[335821756,1724512233264,-500.0,0.00010999,2]
[335821757,1724512233273,-500.0,0.00010999,2]
[335821758,1724512233284,-500.0,0.00010999,2]
[335821759,1724512233294,-334.76,0.00010999,2]
[335821760,1724512233305,-500.0,0.00010999,2]
[335821761,1724512233314,-500.0,0.00010999,2]
[335821762,1724512233324,-500.0,0.00010999,2]
[335821763,1724512233334,-500.0,0.00010999,2]
[335821764,1724512233345,-500.0,0.00010999,2]
[335821765,1724512233354,-500.0,0.00010999,2]
[335821766,1724512233364,-500.0,0.00010999,2]
[335821767,1724512233374,-500.0,0.00010999,2]
[335821768,1724512233383,-500.0,0.00010999,2]
[335821769,1724512233392,-500.0,0.00010999,2]
[335821770,1724512233402,-500.0,0.00010999,2]
[335821771,1724512233411,-500.0,0.00010999,2]
[335821772,1724512233420,-500.0,0.00010999,2]
[335821773,1724512233430,-500.0,0.00010999,2]
[335821774,1724512233440,-500.0,0.00010999,2]
[335821775,1724512233449,-500.0,0.00010999,2]
[335821776,1724512233459,-500.0,0.00010999,2]
[335821777,1724512233468,-500.0,0.00010999,2]
[335821778,1724512233477,-500.0,0.00010999,2]
[335821779,1724512233486,-500.0,0.00010999,2]
[335821780,1724512233495,-500.0,0.00010999,2]
[335821781,1724512233505,-475.38,0.00010999,2]
[335821782,1724512233514,-500.0,0.00010999,2]
[335821783,1724512233523,-500.0,0.00010999,2]
[335821784,1724512233533,-500.0,0.00010999,2]
[335821785,1724512233542,-500.0,0.00010999,2]
[335821786,1724512233551,-500.0,0.00010999,2]
[335821787,1724512233561,-500.0,0.00010999,2]
[335821788,1724512233570,-500.0,0.00010999,2]
[335821789,1724512233579,-500.0,0.00010999,2]
[335821790,1724512233588,-274.48184865,0.00010999,2]
[335821791,1724512233597,-500.0,0.00010999,2]
[335821792,1724512233606,-500.0,0.00010999,2]
[335821793,1724512233615,-500.0,0.00010999,2]
[335821794,1724512233624,-500.0,0.00010999,2]
[335821795,1724512233634,-500.0,0.00010999,2]
[335821796,1724512233643,-500.0,0.00010999,2]
[335821797,1724512233653,-500.0,0.00010999,2]
[335821798,1724512233662,-286.78288448,0.00010999,2]
[335821799,1724512233671,-500.0,0.00010999,2]
[335821800,1724512233681,-500.0,0.00010999,2]
[335821801,1724512233690,-500.0,0.00010999,2]
[335821802,1724512233699,-500.0,0.00010999,2]
[335821803,1724512233709,-514.89,0.00010999,2]
[335821804,1724512233718,-151.0,0.00010999,2]
[335821805,1724512233727,-151.0,0.00010999,2]
[335821806,1724512233737,-500.0,0.00010999,2]
[335821807,1724512233747,-500.0,0.00010999,2]
[335821808,1724512233757,-500.0,0.00010999,2]
[335821809,1724512233767,-500.0,0.00010999,2]
[335821810,1724512233777,-500.0,0.00010999,2]
[335821811,1724512233787,-500.0,0.00010999,2]
[335821812,1724512233796,-500.0,0.00010999,2]
[335821813,1724512233805,-500.0,0.00010999,2]
[335821814,1724512233815,-500.0,0.00010999,2]
[335821815,1724512233824,-500.0,0.00010999,2]
[335821816,1724512233833,-500.0,0.00010999,2]
[335821817,1724512233843,-500.0,0.00010999,2]
[335821818,1724512233852,-500.0,0.00010999,2]
[335821819,1724512233862,-500.0,0.00010999,2]
[335821820,1724512233872,-500.0,0.00010999,2]
[335821821,1724512233881,-306.06,0.00010999,2]
[335821822,1724512233891,-500.0,0.00010999,2]
[335821823,1724512233900,-500.0,0.00010999,2]
[335821824,1724512233910,-500.0,0.00010999,2]
[335821825,1724512233919,-500.0,0.00010999,2]
[335821826,1724512233929,-500.0,0.00010999,2]
[335821827,1724512233939,-500.0,0.00010999,2]
[335821828,1724512233949,-500.0,0.00010999,2]
[335821829,1724512233958,-500.0,0.00010999,2]
[335821830,1724512233968,-500.0,0.00010999,2]
[335821831,1724512233978,-500.0,0.00010999,2]
[335821832,1724512233988,-500.0,0.00010999,2]
[335821833,1724512233998,-500.0,0.00010999,2]
[335821834,1724512234008,-500.0,0.00010999,2]
[335821835,1724512234017,-500.0,0.00010999,2]
[335821836,1724512234027,-500.0,0.00010999,2]
[335821837,1724512234037,-500.0,0.00010999,2]
[335821838,1724512234047,-500.0,0.00010999,2]
[335821839,1724512234056,-500.0,0.00010999,2]
[335821840,1724512234066,-159.3,0.00010999,2]
[335821841,1724512234076,-282.72725706,0.00010999,2]
[335821846,1724512237440,-166.70157516,0.00010862,2]
[335821847,1724512237451,-155.0,0.00010888,2]
[335821848,1724512237460,-23.73842484,0.00010999,2]
[335821875,1724512238121,-193.5343181,0.00010999,2]
[335821877,1724512238130,-361.04240765,0.00010999,2]
[335821879,1724512238142,-138.95759235,0.00010999,2]
[335821881,1724512238152,-500.0,0.00010999,2]
[335821883,1724512238161,-500.0,0.00010999,2]
[335821885,1724512238171,-500.0,0.00010999,2]
[335821887,1724512238180,-286.40240765,0.00010999,2]
[335821889,1724512238191,-213.59759235,0.00010999,2]
[335821891,1724512238201,-441.90240765,0.00010999,2]
[335822055,1724512239993,-58.09759235,0.00010999,2]
[335822057,1724512240003,-500.0,0.00010999,2]
[335822059,1724512240013,-500.0,0.00010999,2]
[335822061,1724512240023,-63.12376545,0.00010999,2]
[335822063,1724512240034,-436.87623455,0.00010999,2]
[335822065,1724512240045,-500.0,0.00010999,2]
[335822067,1724512240055,-500.0,0.00010999,2]
[335822069,1724512240064,-500.0,0.00010999,2]
[335822071,1724512240074,-500.0,0.00010999,2]
[335822073,1724512240083,-285.79,0.00010999,2]
[335822075,1724512240093,-500.0,0.00010999,2]
[335822077,1724512240103,-500.0,0.00010999,2]
[335822079,1724512240113,-500.0,0.00010999,2]
[335822081,1724512240123,-500.0,0.00010999,2]
[335822083,1724512240132,-500.0,0.00010999,2]
[335822085,1724512240142,-500.0,0.00010999,2]
[335822087,1724512240151,-500.0,0.00010999,2]
[335822089,1724512240161,-500.0,0.00010999,2]
[335822091,1724512240171,-500.0,0.00010999,2]
[335822093,1724512240180,-500.0,0.00010999,2]
[335822095,1724512240190,-500.0,0.00010999,2]
[335822097,1724512240199,-500.0,0.00010999,2]
[335822099,1724512240209,-500.0,0.00010999,2]
[335822101,1724512240218,-500.0,0.00010999,2]
[335822103,1724512240227,-500.0,0.00010999,2]
[335822105,1724512240236,-500.0,0.00010999,2]
[335822107,1724512240245,-175.97,0.00010999,2]
[335822109,1724512240255,-500.0,0.00010999,2]
[335822111,1724512240268,-500.0,0.00010999,2]
[335822112,1724512240277,-500.0,0.00010999,2]
[335822114,1724512240286,-630.95,0.00010999,2]
[335822116,1724512240297,-151.0,0.00010999,2]
[335822118,1724512240307,-151.0,0.00010999,2]
[335822120,1724512240317,-500.0,0.00010999,2]
[335822122,1724512240327,-500.0,0.00010999,2]
[335822124,1724512240336,-399.34,0.00010999,2]
[335822126,1724512240346,-500.0,0.00010999,2]
[335822128,1724512240356,-500.0,0.00010999,2]
[335822130,1724512240366,-500.0,0.00010999,2]
[335822133,1724512240376,-500.0,0.00010999,2]
[335822136,1724512240385,-500.0,0.00010999,2]
[335822139,1724512240394,-500.0,0.00010999,2]
[335822142,1724512240403,-500.0,0.00010999,2]
[335822145,1724512240413,-500.0,0.00010999,2]
[335822148,1724512240423,-500.0,0.00010999,2]
[335822151,1724512240432,-500.0,0.00010999,2]
[335822154,1724512240442,-500.0,0.00010999,2]
[335822157,1724512240453,-500.0,0.00010999,2]
[335822160,1724512240462,-500.0,0.00010999,2]
[335822163,1724512240472,-500.0,0.00010999,2]
[335822166,1724512240481,-500.0,0.00010999,2]
[335822168,1724512240491,-500.0,0.00010999,2]
[335822170,1724512240500,-551.21697907,0.00010999,2]
[335822172,1724512240509,-500.0,0.00010999,2]
[335822174,1724512240518,-500.0,0.00010999,2]
[335822176,1724512240528,-500.0,0.00010999,2]
[335822178,1724512240538,-544.15,0.00010999,2]
[335822180,1724512240548,-500.0,0.00010999,2]
[335822182,1724512240557,-500.0,0.00010999,2]
[335822184,1724512240566,-500.0,0.00010999,2]
[335822186,1724512240576,-500.0,0.00010999,2]
[335822188,1724512240585,-500.0,0.00010999,2]
[335822190,1724512240595,-500.0,0.00010999,2]
[335822192,1724512240604,-500.0,0.00010999,2]
[335822194,1724512240614,-500.0,0.00010999,2]
[335822196,1724512240623,-500.0,0.00010999,2]
[335822198,1724512240632,-500.0,0.00010999,2]
[335822199,1724512240641,-500.0,0.00010999,2]
[335822201,1724512240651,-500.0,0.00010999,2]
[335822203,1724512240660,-500.0,0.00010999,2]
[335822205,1724512240669,-500.0,0.00010999,2]
[335822207,1724512240680,-500.0,0.00010999,2]
[335822209,1724512240689,-244.365681,0.00010999,2]
[335822211,1724512240698,-500.0,0.00010999,2]
[335822213,1724512240708,-28.30028764,0.00010999,2]
[335822216,1724512240721,-471.69971236,0.00010999,2]
[335822218,1724512240731,-500.0,0.00010999,2]
[335822220,1724512240740,-213.84,0.00010999,2]
[335822222,1724512240749,-500.0,0.00010999,2]
[335822224,1724512240759,-451.69,0.00010999,2]
[335822226,1724512240768,-151.0,0.00010999,2]
[335822227,1724512240777,-151.0,0.00010999,2]
[335822230,1724512240787,-151.0,0.00010999,2]
[335822231,1724512240798,-151.0,0.00010999,2]
[335822233,1724512240808,-151.0,0.00010999,2]
[335822235,1724512240818,-151.0,0.00010999,2]
[335822238,1724512240827,-500.0,0.00010999,2]
[335822240,1724512240837,-500.0,0.00010999,2]
[335822242,1724512240847,-500.0,0.00010999,2]
[335822243,1724512240856,-500.0,0.00010999,2]
[335822244,1724512240866,-500.0,0.00010999,2]
[335822245,1724512240876,-500.0,0.00010999,2]
[335822246,1724512240886,-500.0,0.00010999,2]
[335822247,1724512240895,-500.0,0.00010999,2]
[335822248,1724512240904,-500.0,0.00010999,2]
[335822249,1724512240914,-533.76941082,0.00010999,2]
[335822250,1724512240923,-500.0,0.00010999,2]
[335822251,1724512240933,-260.32726029,0.00010999,2]
[335822252,1724512240943,-500.0,0.00010999,2]
[335822253,1724512240952,-281.18736316,0.00010999,2]
[335822254,1724512240962,-500.0,0.00010999,2]
[335822255,1724512240971,-500.0,0.00010999,2]
[335822256,1724512240981,-500.0,0.00010999,2]
[335822257,1724512240990,-500.0,0.00010999,2]
[335822258,1724512241000,-500.0,0.00010999,2]
[335822259,1724512241009,-500.0,0.00010999,2]
[335822260,1724512241019,-500.0,0.00010999,2]
[335822261,1724512241028,-500.0,0.00010999,2]
[335822262,1724512241037,-500.0,0.00010999,2]
[335822263,1724512241049,-500.0,0.00010999,2]
[335822264,1724512241059,-500.0,0.00010999,2]
[335822265,1724512241068,-263.98,0.00010999,2]
[335822266,1724512241077,-500.0,0.00010999,2]
[335822267,1724512241086,-500.0,0.00010999,2]
[335822268,1724512241095,-500.0,0.00010999,2]
[335822269,1724512241105,-500.0,0.00010999,2]
[335822270,1724512241114,-500.0,0.00010999,2]
[335822271,1724512241123,-560.62,0.00010999,2]
[335822272,1724512241133,-560.62,0.00010999,2]
[335822273,1724512241142,-205.57759256,0.00010999,2]
[335822274,1724512241151,-560.62,0.00010999,2]
[335822275,1724512241161,-560.62,0.00010999,2]
[335822276,1724512241170,-560.62,0.00010999,2]
[335822277,1724512241180,-560.62,0.00010999,2]
[335822278,1724512241189,-560.62,0.00010999,2]
[335822279,1724512241199,-560.62,0.00010999,2]
[335822280,1724512241208,-560.62,0.00010999,2]
[335822281,1724512241217,-560.62,0.00010999,2]
[335822282,1724512241226,-560.62,0.00010999,2]
[335822283,1724512241235,-560.62,0.00010999,2]
[335822284,1724512241244,-560.62,0.00010999,2]
[335822285,1724512241253,-560.62,0.00010999,2]
[335822286,1724512241263,-560.62,0.00010999,2]
[335822288,1724512241275,-560.62,0.00010999,2]
[335822289,1724512241284,-560.62,0.00010999,2]
[335822291,1724512241293,-560.62,0.00010999,2]
[335822293,1724512241302,-560.62,0.00010999,2]
[335822295,1724512241313,-560.62,0.00010999,2]
[335822297,1724512241322,-560.62,0.00010999,2]
[335822299,1724512241331,-560.62,0.00010999,2]
[335822300,1724512241342,-560.76807986,0.00010999,2]
[335822301,1724512241354,-4663.3,0.00010999,2]
[335822302,1724512241363,-3075.6412455,0.00010999,2]
[335822303,1724512241376,-478.75263346,0.00010999,2]
[335822312,1724512242651,-500.57827625,0.00010999,2]
[335822531,1724512245600,-312.925,0.00010999,2]
[335822641,1724512308512,800.0,0.0001,3]
[335822642,1724512310610,1700.0,0.000101,3]
[335822643,1724512347666,1050.0,0.0001,2]
[335822644,1724512365299,374.65,8.219e-05,2]
[335822646,1724512435378,314.24701514,0.00010097,2]
[335822647,1724512565748,239.63,9.967e-05,2]
[335822648,1724512580376,560.56,9.917e-05,2]
[335822652,1724512701335,180.29,9.87e-05,2]
[335822653,1724512709551,200.0,9.87e-05,2]
[335822655,1724512758829,230.79,0.0001,2]
[335822656,1724512765639,171.52,9.875e-05,2]
[335822660,1724512933472,760.7647757,9.875e-05,2]
[335822661,1724512933992,155.0,0.00010097,2]
[335822662,1724512947478,2880.32,9.84e-05,2]
[335822663,1724512973403,371.93,8.219e-05,2]
[335822664,1724513039599,277.76999824,9.962e-05,2]
[335822665,1724513063150,775.00144906,9.962e-05,2]
[335822666,1724513129918,2114.19439872,0.00010097,2]
[335822668,1724513136255,561.88444547,9.5e-05,2]
[335822673,1724513212373,485.73832575,0.00010097,2]
[335822674,1724513226420,673.94561136,0.00010097,2]
[335822681,1724513248130,700.0,0.0001,3]
[335822683,1724513249956,21780.36,9.954e-05,2]
[335822686,1724513250233,1400.0,0.000101,3]
[335822688,1724513265792,1051.50505486,0.00010097,2]
[335822689,1724513274958,299.48457617,0.00010097,2]
[335822690,1724513276781,170.6804844,0.00010097,2]
[335822691,1724513278205,485.20301306,0.00010097,2]
[335822693,1724513288714,413.46513712,0.00010097,2]
[335822694,1724513290736,176.60226413,0.00010097,2]
[335822695,1724513299322,840.0,9.805e-05,2]
[335822696,1724513333509,170.48,9.813e-05,2]
[335822703,1724513374953,174.54,9.727e-05,2]
[335822735,1724513431686,-316.80001562,0.00010026,2]
[335822737,1724513431696,-5.42726157,0.00010097,2]
[335822739,1724513431705,-162.89789025,0.00010097,2]
[335822741,1724513431715,-247.04134505,0.000101,2]
[335822743,1724513431726,-600.27,0.000101,2]
[335822744,1724513431737,-398.2019948,0.000101,2]
[335822745,1724513431747,-1245.51333984,0.0001015,2]
[335822746,1724513431756,-4361.28466536,0.0001015,2]
[335822747,1724513431767,-301.53418132,0.0001015,2]
[335822748,1724513431786,-2186.65209013,0.0001015,2]
[335822749,1724513431797,-4323.59663611,0.0001015,2]
[335822750,1724513431807,-2100.0,0.000102,3]
[335822751,1724513431816,-1245.51333984,0.000102,2]
[335822752,1724513431826,-2705.20525933,0.000103,3]
[335822753,1724513431838,-194.79474067,0.000103,3]
[335822754,1724513431847,-300.0,0.00010388,2]
[335822755,1724513431857,-186.59595781,0.00010388,2]
[335822756,1724513431869,-113.40404219,0.00010388,2]
[335822757,1724513431878,-860.27502339,0.00010389,2]
[335822758,1724513431887,-150.0,0.00010398,2]
[335822759,1724513431897,-6087.32093442,0.00010399,2]
[335822760,1724513431908,-428.45648914,0.00010399,2]
[335822761,1724513431920,-7839.8235,0.00010399,2]
[335822762,1724513431937,-5243.29172088,0.00010399,2]
[335822775,1724513437893,-424.25166199,0.00010399,2]
[335822776,1724513437905,-2365.83521746,0.00010399,2]
[335822792,1724513438384,-3105.24345725,0.00010399,2]
[335822794,1724513438395,-29901.53162283,0.00010399,2]
[335822796,1724513438407,-13279.10360009,0.00010399,2]
[335822799,1724513438423,-17609.88353111,0.00010399,2]
[335822895,1724513439945,-6519.27952393,0.00010399,2]
[335822896,1724513440076,-1485.61066457,0.00010399,2]
[335822898,1724513440209,-14653.0313293,0.00010399,2]
[335822908,1724513442803,-1946.17863053,0.00010399,2]
[335822909,1724513443092,-995.375,0.00010399,2]
[335822921,1724513445706,-3627.29052059,0.00010399,2]
[335822922,1724513526242,389.76,8.219e-05,2]
[335822923,1724513606192,7244.6679,9.926e-05,2]
[335822924,1724513637086,239.88,9.828e-05,2]
[335822927,1724513831814,416.3021,9.767e-05,2]
[335822928,1724513831834,2878.8479,9.767e-05,2]
[335822929,1724513854320,328.0,9.759e-05,2]
[335822930,1724513858574,1113.38,9.741e-05,2]
[335822932,1724513916043,238.91923689,0.00010009,2]
[335822933,1724513925744,298.88080064,0.00010009,2]
[335822934,1724513927911,155.04549642,0.00010009,2]
[335822935,1724513946869,203.04187504,0.00010009,2]
[335822936,1724513972507,162.89789025,0.00010009,2]
[335822937,1724513972858,182.0295257,0.00010009,2]
[335822938,1724513972982,314.24701514,0.00010009,2]
[335822939,1724513973345,170.6804844,0.00010009,2]
[335822940,1724513983024,299.48457617,0.00010009,2]
[335822941,1724513984767,413.46513712,0.00010009,2]
[335822942,1724513986898,1051.50505486,0.00010009,2]
[335822943,1724513988848,255.13733329,0.00010009,2]
[335822944,1724513993701,159.53742634,0.00010009,2]
[335822945,1724513994781,303.94959082,0.00010009,2]
[335822946,1724513999196,485.20301306,0.00010009,2]
[335822947,1724514001894,985.74764386,0.00010009,2]
[335822948,1724514001914,65.757411,0.00010009,2]
[335822949,1724514002658,432.43627128,0.00010009,2]
[335822950,1724514008182,485.20301306,0.00010009,2]
[335822951,1724514012996,299.48457617,0.00010009,2]
[335822952,1724514013798,155.7813076,0.00010009,2]
[335822953,1724514016999,200.86247195,0.00010009,2]
[335822954,1724514020099,155.0,0.00010009,2]
[335822955,1724514023203,188.25,9.756e-05,2]
[335822956,1724514033818,222.32373504,0.00010009,2]
[335822957,1724514035077,201.02058771,0.00010009,2]
[335822958,1724514036549,330.46251231,0.00010009,2]
[335822959,1724514040613,164.44192191,0.00010009,2]
[335822960,1724514041598,277.27614163,0.00010009,2]
[335822970,1724514064354,170.95502605,0.00010009,2]
[335822971,1724514064880,199.25633551,0.00010009,2]
[335822973,1724514068854,179.71785152,0.00010009,2]
[335822974,1724514071783,182.55034341,0.00010009,2]
[335822975,1724514074481,201.72917562,0.00010009,2]
[335822976,1724514079760,413.46513712,0.00010009,2]
[335822977,1724514089592,287.27369287,0.00010009,2]
[335822978,1724514090156,155.19086348,0.00010009,2]